fUST/lending_fUST_20240511
["ID","MTS","AMOUNT","RATE_DAILY","PERIOD"]
[326801519,1715381515123,-3744.03,0.00075616,120]
[326801520,1715381515132,-1011.1,0.00075616,120]
[326801521,1715381515142,-650.98,0.00075616,120]
[326801522,1715381515152,-974.14542008,0.00075645,120]
[326801523,1715381515161,-1412.8469889,0.00075824,120]
[326801524,1715381515170,-1798.14077635,0.00075991,120]
[326801525,1715381515184,-500.0,0.00076,120]
[326801526,1715381515194,-974.14542008,0.00076191,120]
[326801527,1715381515204,-1412.8469889,0.00076244,120]
[326801528,1715381515213,-152.87482911,0.00076337,120]
[326801529,1715381515224,-167.555949,0.00076438,120]
[326801530,1715381515233,-1798.14077635,0.00076572,120]
[326801531,1715381515242,-160.0,0.00076572,5]
[326801532,1715381515251,-602.21,0.00076712,120]
[326801533,1715381515260,-500.0,0.00076712,120]
[326801534,1715381515272,-1165.04,0.00076712,120]
[326801535,1715381515281,-549.89,0.00076712,120]
[326801536,1715381515290,-609.89,0.00076712,120]
[326801537,1715381515299,-2148.21,0.00076712,120]
[326801538,1715381515308,-500.0,0.00076712,120]
[326801539,1715381515317,-502.29793046,0.00076712,120]
[326801540,1715381515327,-541.11,0.00076712,120]
[326801541,1715381515335,-574.68,0.00076712,120]
[326801542,1715381515345,-1271.67,0.00076712,7]
[326801543,1715381515354,-1161.06,0.00076712,120]
[326801544,1715381515364,-500.0,0.00076712,120]
[326801545,1715381515373,-664.96,0.00076712,120]
[326801546,1715381515382,-606.82,0.00076712,120]
[326801547,1715381515391,-2047.19,0.00076712,120]
[326801548,1715381515400,-666.88,0.00076712,120]
[326801549,1715381515410,-2115.98,0.00076712,4]
[326801550,1715381515419,-744.8,0.00076712,120]
[326801551,1715381515428,-671.73,0.00076712,120]
[326801552,1715381515439,-1253.15,0.00076712,120]
[326801553,1715381515450,-2379.45,0.00076712,120]
[326801554,1715381515459,-591.68,0.00076712,120]
[326801555,1715381515468,-576.78,0.00076712,120]
[326801556,1715381515476,-534.42,0.00076712,120]
[326801557,1715381515486,-1078.44,0.00076712,120]
[326801558,1715381515495,-1489.95,0.00076712,120]
[326801559,1715381515504,-440.85196044,0.00076712,120]
[326801560,1715381515513,-1505.02,0.00076712,120]
[326801561,1715381515522,-821.7,0.00076712,120]
[326801562,1715381515531,-847.21,0.00076712,120]
[326801563,1715381515540,-1744.14,0.00076712,2]
[326801564,1715381515549,-1487.03,0.00076712,120]
[326801565,1715381515559,-2725.02,0.00076712,120]
[326801566,1715381515569,-1524.58,0.00076712,120]
[326801567,1715381515578,-621.58,0.00076712,120]
[326801568,1715381515588,-550.87,0.00076712,120]
[326801569,1715381515597,-670.43,0.00076712,120]
[326801570,1715381515606,-1135.37,0.00076712,120]
[326801571,1715381515615,-515.4,0.00076712,120]
[326801572,1715381515625,-565.96,0.00076712,120]
[326801573,1715381515634,-700.54,0.00076712,120]
[326801574,1715381515643,-571.02,0.00076712,120]
[326801575,1715381515652,-339.02779592,0.00076712,120]
[326801576,1715381515661,-2668.96,0.00076712,120]
[326801577,1715381515670,-641.61823473,0.00076712,120]
[326801578,1715381515680,-820.35,0.00076712,120]
[326801579,1715381515689,-501.21,0.00076712,120]
[326801580,1715381515698,-1000.0,0.00076712,120]
[326801581,1715381515708,-1000.0,0.00076712,120]
[326801582,1715381515717,-1000.0,0.00076712,120]
[326801583,1715381515726,-1009.42450015,0.00076712,120]
[326801584,1715381515735,-598.13,0.00076712,120]
[326801585,1715381515745,-967.26,0.00076712,120]
[326801586,1715381515754,-819.54,0.00076712,120]
[326801587,1715381515763,-620.58,0.00076712,120]
[326801588,1715381515773,-594.58,0.00076712,120]
[326801589,1715381515782,-819.92,0.00076712,120]
[326801590,1715381515791,-678.91,0.00076712,120]
[326801591,1715381515800,-610.7,0.00076712,120]
[326801592,1715381515809,-648.3,0.00076712,120]
[326801593,1715381515819,-873.9,0.00076712,120]
[326801594,1715381515828,-780.28,0.00076712,120]
[326801595,1715381515837,-2756.4,0.00076712,120]
[326801596,1715381515847,-1210.86,0.00076712,120]
[326801597,1715381515856,-1070.89,0.00076712,120]
[326801598,1715381515865,-1070.51,0.00076712,120]
[326801599,1715381515874,-757.61,0.00076712,120]
[326801600,1715381515884,-4210.69,0.00076712,120]
[326801601,1715381515893,-2993.37,0.00076712,120]
[326801602,1715381515902,-551.15,0.00076712,120]
[326801603,1715381515911,-733.98,0.00076712,120]
[326801604,1715381515920,-500.0,0.00076712,120]
[326801605,1715381515930,-4672.91,0.00076712,120]
[326801606,1715381515939,-1818.74,0.00076712,120]
[326801607,1715381515949,-527.33,0.00076712,120]
[326801608,1715381515959,-500.0,0.00076712,120]
[326801609,1715381515968,-378.32570333,0.00076712,120]
[326801610,1715381515977,-1189.78,0.00076712,120]
[326801611,1715381515986,-580.1,0.00076712,120]
[326801612,1715381515996,-837.42,0.00076712,120]
[326801613,1715381516005,-599.74,0.00076712,120]
[326801614,1715381516015,-1366.53,0.00076712,7]
[326801615,1715381516024,-549.67,0.00076712,120]
[326801616,1715381516033,-9331.73,0.00076712,120]
[326801617,1715381516043,-638.03,0.00076712,120]
[326801618,1715381516053,-2272.92,0.00076712,120]
[326801619,1715381516063,-623.13,0.00076712,120]
[326801620,1715381516072,-500.0,0.00076712,120]
[326801621,1715381516082,-1021.55,0.00076712,120]
[326801622,1715381516092,-3952.33,0.00076712,120]
[326801623,1715381516102,-728.64,0.00076712,120]
[326801624,1715381516112,-7667.9,0.00076712,120]
[326801625,1715381516121,-570.68,0.00076712,120]
[326801626,1715381516130,-3673.96,0.00076712,120]
[326801627,1715381516140,-2110.2,0.00076712,120]
[326801628,1715381516149,-8336.17,0.00076712,120]
[326801629,1715381516159,-1410.23,0.00076712,120]
[326801630,1715381516169,-1154.88,0.00076712,120]
[326801631,1715381516180,-8703.16,0.00076712,120]
[326801632,1715381516194,-751.25,0.00076712,120]
[326801633,1715381516203,-536.24,0.00076712,120]
[326801634,1715381516212,-745.85,0.00076712,120]
[326801635,1715381516221,-1112.7,0.00076712,120]
[326801636,1715381516231,-3156.04,0.00076712,120]
[326801637,1715381516241,-1283.02,0.00076712,120]
[326801638,1715381516428,-1747.91,0.00076712,120]
[326801639,1715381516441,-924.27,0.00076712,120]
[326801640,1715381516450,-585.25,0.00076712,120]
[326801641,1715381516460,-790.87,0.00076712,120]
[326801642,1715381516470,-1269.11,0.00076712,120]
[326801643,1715381516479,-5883.06,0.00076712,120]
[326801644,1715381516489,-1859.96,0.00076712,120]
[326801645,1715381516499,-1701.09,0.00076712,120]
[326801646,1715381516508,-632.32,0.00076712,60]
[326801647,1715381516517,-1691.53,0.00076712,120]
[326801648,1715381516526,-592.96,0.00076712,120]
[326801649,1715381516535,-3991.97,0.00076712,120]
[326801650,1715381516545,-783.68,0.00076712,120]
[326801651,1715381516554,-4891.99,0.00076712,21]
[326801652,1715381516563,-2531.38,0.00076712,120]
[326801653,1715381516572,-500.0,0.00076712,120]
[326801654,1715381516582,-2025.54,0.00076712,120]
[326801655,1715381516591,-47405.75,0.00076712,120]
[326801656,1715381516601,-2056.13,0.00076712,120]
[326801657,1715381516610,-643.51,0.00076712,120]
[326801658,1715381516620,-906.96,0.00076712,120]
[326801659,1715381516630,-852.8,0.00076712,120]
[326801660,1715381516640,-8527.55,0.00076712,120]
[326801661,1715381516649,-972.54,0.00076712,120]
[326801662,1715381516658,-546.11,0.00076712,120]
[326801663,1715381516668,-3524.89,0.00076712,2]
[326801664,1715381516677,-1320.33,0.00076712,2]
[326801665,1715381516687,-560.85,0.00076712,120]
[326801666,1715381516696,-715.77,0.00076712,120]
[326801667,1715381516706,-728.84,0.00076712,120]
[326801668,1715381516716,-1524.6,0.00076712,120]
[326801669,1715381516725,-2617.66,0.00076712,120]
[326801670,1715381516735,-1552.09,0.00076712,120]
[326801671,1715381516744,-1408.03,0.00076712,120]
[326801672,1715381516755,-709.54,0.00076712,120]
[326801673,1715381516764,-2955.83,0.00076712,120]
[326801674,1715381516774,-679.75,0.00076712,120]
[326801675,1715381516784,-525.15,0.00076712,120]
[326801676,1715381516794,-671.41,0.00076712,120]
[326801677,1715381516803,-17679.9,0.00076712,120]
[326801678,1715381516813,-4314.35,0.00076712,120]
[326801679,1715381516822,-680.13,0.00076712,120]
[326801680,1715381516832,-9229.8,0.00076712,120]
[326801681,1715381516842,-990.56,0.00076712,120]
[326801682,1715381516851,-1953.0,0.00076712,120]
[326801683,1715381516860,-1273.71,0.00076712,120]
[326801684,1715381516869,-1389.39,0.00076712,120]
[326801685,1715381516878,-510.44,0.00076712,2]
[326801686,1715381516888,-300.0,0.00076712,7]
[326801687,1715381516897,-3744.03,0.00076712,120]
[326801688,1715381516906,-1011.1,0.00076712,120]
[326801689,1715381516916,-650.98,0.00076712,120]
[326801690,1715381516925,-166.666666,0.00076712,120]
[326801691,1715381516934,-150.97189535,0.00076846,120]
[326801692,1715381516943,-2500.0,0.000769,120]
[326801693,1715381516952,-169.25395516,0.00076976,120]
[326801694,1715381516962,-581.41887466,0.00077,120]
[326801695,1715381516971,-1798.14077635,0.00077013,120]
[326801696,1715381516980,-151.0,0.00077041,120]
[326801697,1715381516989,-1412.8469889,0.00077087,120]
[326801698,1715381516999,-1798.14077635,0.00077312,120]
[326801699,1715381517009,-1000.0,0.00077391,120]
[326801700,1715381517019,-157.99940942,0.00077442,120]
[326801701,1715381517028,-974.14542008,0.00077714,120]
[326801702,1715381517037,-150.97189535,0.00077752,120]
[326801703,1715381517046,-150.97189535,0.00077772,120]
[326801704,1715381517055,-602.21,0.00077808,120]
[326801705,1715381517064,-356.69667838,0.00077808,120]
[326801706,1715381517073,-1165.04,0.00077808,120]
[326801707,1715381517082,-549.89,0.00077808,120]
[326801708,1715381517090,-609.89,0.00077808,120]
[326801709,1715381517099,-2148.21,0.00077808,120]
[326801710,1715381517108,-541.11,0.00077808,120]
[326801711,1715381517118,-574.68,0.00077808,120]
[326801712,1715381517127,-1271.67,0.00077808,7]
[326801713,1715381517136,-1161.06,0.00077808,120]
[326801714,1715381517145,-500.0,0.00077808,120]
[326801715,1715381517154,-664.96,0.00077808,120]
[326801716,1715381517163,-606.82,0.00077808,120]
[326801717,1715381517173,-2047.19,0.00077808,120]
[326801718,1715381517187,-666.88,0.00077808,120]
[326801719,1715381517196,-2115.98,0.00077808,4]
[326801720,1715381517205,-744.8,0.00077808,120]
[326801721,1715381517215,-671.73,0.00077808,120]
[326801722,1715381517225,-1253.15,0.00077808,120]
[326801723,1715381517234,-2379.45,0.00077808,120]
[326801724,1715381517243,-591.68,0.00077808,120]
[326801725,1715381517252,-576.78,0.00077808,120]
[326801726,1715381517263,-534.42,0.00077808,120]
[326801727,1715381517272,-1078.44,0.00077808,120]
[326801728,1715381517281,-1489.95,0.00077808,120]
[326801729,1715381517290,-1505.02,0.00077808,120]
[326801730,1715381517299,-821.7,0.00077808,120]
[326801731,1715381517308,-847.21,0.00077808,120]
[326801732,1715381517317,-1744.14,0.00077808,2]
[326801733,1715381517326,-1487.03,0.00077808,120]
[326801734,1715381517335,-2725.02,0.00077808,120]
[326801735,1715381517344,-1524.58,0.00077808,120]
[326801736,1715381517353,-621.58,0.00077808,120]
[326801737,1715381517362,-550.87,0.00077808,120]
[326801738,1715381517372,-670.43,0.00077808,120]
[326801739,1715381517381,-1135.37,0.00077808,120]
[326801740,1715381517390,-515.4,0.00077808,120]
[326801741,1715381517399,-565.96,0.00077808,120]
[326801742,1715381517408,-700.54,0.00077808,120]
[326801743,1715381517417,-571.02,0.00077808,120]
[326801744,1715381517426,-2668.96,0.00077808,120]
[326801745,1715381517435,-820.35,0.00077808,120]
[326801746,1715381517444,-501.21,0.00077808,120]
[326801747,1715381517453,-598.13,0.00077808,120]
[326801748,1715381517462,-967.26,0.00077808,120]
[326801749,1715381517471,-819.54,0.00077808,120]
[326801750,1715381517480,-620.58,0.00077808,120]
[326801751,1715381517489,-594.58,0.00077808,120]
[326801752,1715381517498,-819.92,0.00077808,120]
[326801753,1715381517507,-678.91,0.00077808,120]
[326801754,1715381517516,-610.7,0.00077808,120]
[326801755,1715381517525,-648.3,0.00077808,120]
[326801756,1715381517535,-873.9,0.00077808,120]
[326801757,1715381517544,-780.28,0.00077808,120]
[326801758,1715381517553,-2756.4,0.00077808,120]
[326801759,1715381517562,-1210.86,0.00077808,120]
[326801760,1715381517570,-1070.89,0.00077808,120]
[326801761,1715381517579,-1070.51,0.00077808,120]
[326801762,1715381517588,-757.61,0.00077808,120]
[326801763,1715381517597,-4210.69,0.00077808,120]
[326801764,1715381517606,-2993.37,0.00077808,120]
[326801765,1715381517615,-551.15,0.00077808,120]
[326801766,1715381517624,-733.98,0.00077808,120]
[326801767,1715381517633,-500.0,0.00077808,120]
[326801768,1715381517643,-4672.91,0.00077808,120]
[326801769,1715381517652,-1818.74,0.00077808,120]
[326801770,1715381517661,-527.33,0.00077808,120]
[326801771,1715381517671,-446.7,0.00077808,120]
[326801772,1715381517679,-1189.78,0.00077808,120]
[326801773,1715381517689,-580.1,0.00077808,120]
[326801774,1715381517698,-837.42,0.00077808,120]
[326801775,1715381517708,-599.74,0.00077808,120]
[326801776,1715381517717,-1366.53,0.00077808,7]
[326801777,1715381517726,-549.67,0.00077808,120]
[326801778,1715381517735,-9331.73,0.00077808,120]
[326801779,1715381517744,-638.03,0.00077808,120]
[326801780,1715381517753,-2272.92,0.00077808,120]
[326801781,1715381517762,-623.13,0.00077808,120]
[326801782,1715381517770,-500.0,0.00077808,120]
[326801783,1715381517779,-1021.55,0.00077808,120]
[326801784,1715381517788,-3952.33,0.00077808,120]
[326801785,1715381517797,-728.64,0.00077808,120]
[326801786,1715381517807,-7667.9,0.00077808,120]
[326801787,1715381517816,-570.68,0.00077808,120]
[326801788,1715381517825,-3673.96,0.00077808,120]
[326801789,1715381517834,-2110.2,0.00077808,120]
[326801790,1715381517843,-8336.17,0.00077808,120]
[326801791,1715381517853,-1410.23,0.00077808,120]
[326801792,1715381517863,-1154.88,0.00077808,120]
[326801793,1715381517873,-8703.16,0.00077808,120]
[326801794,1715381517883,-751.25,0.00077808,120]
[326801795,1715381517892,-536.24,0.00077808,120]
[326801796,1715381517902,-745.85,0.00077808,120]
[326801797,1715381517912,-1112.7,0.00077808,120]
[326801798,1715381517921,-3156.04,0.00077808,120]
[326801799,1715381517930,-1283.02,0.00077808,120]
[326801800,1715381517940,-1747.91,0.00077808,120]
[326801801,1715381517949,-924.27,0.00077808,120]
[326801802,1715381517959,-585.25,0.00077808,120]
[326801803,1715381517969,-790.87,0.00077808,120]
[326801804,1715381517978,-1269.11,0.00077808,120]
[326801805,1715381517988,-5883.06,0.00077808,120]
[326801806,1715381517998,-1859.96,0.00077808,120]
[326801807,1715381518007,-1701.09,0.00077808,120]
[326801808,1715381518016,-632.32,0.00077808,60]
[326801809,1715381518025,-1691.53,0.00077808,120]
[326801810,1715381518035,-592.96,0.00077808,120]
[326801811,1715381518045,-3991.97,0.00077808,120]
[326801812,1715381518053,-783.68,0.00077808,120]
[326801813,1715381518062,-4891.99,0.00077808,21]
[326801814,1715381518072,-2531.38,0.00077808,120]
[326801815,1715381518081,-500.0,0.00077808,120]
[326801816,1715381518090,-2025.54,0.00077808,120]
[326801817,1715381518098,-2056.13,0.00077808,120]
[326801818,1715381518107,-47405.75,0.00077808,120]
[326801819,1715381518116,-643.51,0.00077808,120]
[326801820,1715381518126,-906.96,0.00077808,120]
[326801821,1715381518135,-852.8,0.00077808,120]
[326801822,1715381518144,-8527.55,0.00077808,120]
[326801823,1715381518153,-972.54,0.00077808,120]
[326801824,1715381518162,-546.11,0.00077808,120]
[326801825,1715381518171,-3524.89,0.00077808,2]
[326801826,1715381518184,-1320.33,0.00077808,2]
[326801827,1715381518193,-560.85,0.00077808,120]
[326801828,1715381518202,-715.77,0.00077808,120]
[326801829,1715381518211,-728.84,0.00077808,120]
[326801830,1715381518221,-1524.6,0.00077808,120]
[326801831,1715381518230,-2617.66,0.00077808,120]
[326801832,1715381518239,-1552.09,0.00077808,120]
[326801833,1715381518249,-1408.03,0.00077808,120]
[326801834,1715381518258,-709.54,0.00077808,120]
[326801835,1715381518269,-2955.83,0.00077808,120]
[326801836,1715381518279,-679.75,0.00077808,120]
[326801837,1715381518288,-525.15,0.00077808,120]
[326801838,1715381518298,-671.41,0.00077808,120]
[326801839,1715381518309,-17679.9,0.00077808,120]
[326801840,1715381518319,-4314.35,0.00077808,120]
[326801841,1715381518328,-680.13,0.00077808,120]
[326801842,1715381518338,-9229.8,0.00077808,120]
[326801843,1715381518347,-990.56,0.00077808,120]
[326801844,1715381518357,-1953.0,0.00077808,120]
[326801845,1715381518369,-1273.71,0.00077808,120]
[326801846,1715381518379,-1389.39,0.00077808,120]
[326801847,1715381518390,-510.44,0.00077808,2]
[326801848,1715381518399,-402.85964416,0.00077808,7]
[326801849,1715381518410,-3744.03,0.00077808,120]
[326801850,1715381518419,-1011.1,0.00077808,120]
[326801851,1715381518431,-650.98,0.00077808,120]
[326801852,1715381518442,-1412.8469889,0.00077882,120]
[326801853,1715381518452,-1688.0,0.000779,120]
[326801854,1715381518461,-1688.0,0.000779,120]
[326801855,1715381518471,-1688.0,0.000779,120]
[326801856,1715381518480,-1766.755,0.000779,120]
[326801857,1715381518489,-257.3619207,0.0007799,60]
[326801858,1715381518499,-601.56086469,0.00078,120]
[326801859,1715381518508,-200000.0,0.00078,120]
[326801860,1715381518518,-88608.2409077,0.00078,120]
[326801861,1715381518526,-326.44479989,0.00078,120]
[326801862,1715381518536,-4500.0,0.00078,30]
[326801863,1715381518547,-1798.14077635,0.00078008,120]
[326801864,1715381518557,-1412.8469889,0.00078143,120]
[326801865,1715381518566,-1798.14077635,0.00078155,120]
[326801866,1715381518575,-1412.8469889,0.00078277,120]
[326801867,1715381518585,-150.97189535,0.00078288,120]
[326801868,1715381518594,-150.97189535,0.00078299,120]
[326801869,1715381518603,-169.25395517,0.00078405,120]
[326801870,1715381518612,-2031.22043874,0.000785,120]
[326801871,1715381518621,-160.0,0.0007851,6]
[326801872,1715381518632,-1798.14077647,0.00078632,120]
[326801873,1715381518641,-974.14542008,0.00078637,120]
[326801874,1715381518784,-557.0,0.00078643,120]
[326801875,1715381518795,-557.0,0.00078643,120]
[326801876,1715381518806,-281.0,0.000788,40]
[326801877,1715381518816,-278.3675275,0.00078899,4]
[326801878,1715381518825,-602.21,0.00078904,120]
[326801879,1715381518834,-1165.04,0.00078904,120]
[326801880,1715381518843,-549.89,0.00078904,120]
[326801881,1715381518853,-609.89,0.00078904,120]
[326801882,1715381518862,-2148.21,0.00078904,120]
[326801883,1715381518872,-541.11,0.00078904,120]
[326801884,1715381518882,-574.68,0.00078904,120]
[326801885,1715381518891,-1271.67,0.00078904,7]
[326801886,1715381518901,-1161.06,0.00078904,120]
[326801887,1715381518910,-231.01204608,0.00078904,120]
[326801888,1715381518919,-664.96,0.00078904,120]
[326801889,1715381518929,-606.82,0.00078904,120]
[326801890,1715381518939,-2047.19,0.00078904,120]
[326801891,1715381518948,-666.88,0.00078904,120]
[326801892,1715381518958,-2115.98,0.00078904,4]
[326801893,1715381518968,-744.8,0.00078904,120]
[326801894,1715381518977,-671.73,0.00078904,120]
[326801895,1715381518986,-1253.15,0.00078904,120]
[326801896,1715381518995,-2379.45,0.00078904,120]
[326801897,1715381519004,-591.68,0.00078904,120]
[326801898,1715381519014,-576.78,0.00078904,120]
[326801899,1715381519024,-534.42,0.00078904,120]
[326801900,1715381519033,-1078.44,0.00078904,120]
[326801901,1715381519043,-1489.95,0.00078904,120]
[326801902,1715381519052,-1505.02,0.00078904,120]
[326801903,1715381519062,-821.7,0.00078904,120]
[326801904,1715381519071,-847.21,0.00078904,120]
[326801905,1715381519080,-1744.14,0.00078904,2]
[326801906,1715381519089,-1487.03,0.00078904,120]
[326801907,1715381519100,-2725.02,0.00078904,120]
[326801908,1715381519109,-1524.58,0.00078904,120]
[326801909,1715381519118,-621.58,0.00078904,120]
[326801910,1715381519131,-550.87,0.00078904,120]
[326801911,1715381519142,-670.43,0.00078904,120]
[326801912,1715381519151,-1135.37,0.00078904,120]
[326801913,1715381519160,-515.4,0.00078904,120]
[326801914,1715381519170,-565.96,0.00078904,120]
[326801915,1715381519182,-700.54,0.00078904,120]
[326801916,1715381519197,-571.02,0.00078904,120]
[326801917,1715381519206,-2668.96,0.00078904,120]
[326801918,1715381519216,-820.35,0.00078904,120]
[326801919,1715381519226,-501.21,0.00078904,120]
[326801920,1715381519236,-598.13,0.00078904,120]
[326801921,1715381519246,-967.26,0.00078904,120]
[326801922,1715381519255,-819.54,0.00078904,120]
[326801923,1715381519269,-620.58,0.00078904,120]
[326801924,1715381519280,-594.58,0.00078904,120]
[326801925,1715381519290,-819.92,0.00078904,120]
[326801927,1715381519300,-678.91,0.00078904,120]
[326801928,1715381519309,-610.7,0.00078904,120]
[326801929,1715381519319,-648.3,0.00078904,120]
[326801930,1715381519328,-873.9,0.00078904,120]
[326801931,1715381519338,-780.28,0.00078904,120]
[326801932,1715381519348,-2756.4,0.00078904,120]
[326801933,1715381519358,-1210.86,0.00078904,120]
[326801934,1715381519368,-1070.89,0.00078904,120]
[326801935,1715381519377,-1070.51,0.00078904,120]
[326801936,1715381519387,-757.61,0.00078904,120]
[326801937,1715381519396,-4210.69,0.00078904,120]
[326801938,1715381519405,-2993.37,0.00078904,120]
[326801939,1715381519415,-551.15,0.00078904,120]
[326801940,1715381519425,-733.98,0.00078904,120]
[326801941,1715381519435,-500.0,0.00078904,120]
[326801942,1715381519444,-4672.91,0.00078904,120]
[326801943,1715381519453,-1818.74,0.00078904,120]
[326801944,1715381519463,-527.33,0.00078904,120]
[326801945,1715381519473,-1189.78,0.00078904,120]
[326801946,1715381519483,-580.1,0.00078904,120]
[326801947,1715381519492,-837.42,0.00078904,120]
[326801948,1715381519502,-599.74,0.00078904,120]
[326801949,1715381519512,-1366.53,0.00078904,7]
[326801950,1715381519522,-549.67,0.00078904,120]
[326801951,1715381519532,-9331.73,0.00078904,120]
[326801952,1715381519542,-638.03,0.00078904,120]
[326801953,1715381519552,-2272.92,0.00078904,120]
[326801954,1715381519562,-623.13,0.00078904,120]
[326801955,1715381519571,-324.10578954,0.00078904,120]
[326801956,1715381519580,-1021.55,0.00078904,120]
[326801957,1715381519590,-3952.33,0.00078904,120]
[326801958,1715381519599,-728.64,0.00078904,120]
[326801959,1715381519609,-7667.9,0.00078904,120]
[326801960,1715381519619,-570.68,0.00078904,120]
[326801961,1715381519628,-3673.96,0.00078904,120]
[326801962,1715381519637,-2110.2,0.00078904,120]
[326801963,1715381519647,-8336.17,0.00078904,120]
[326801964,1715381519657,-1410.23,0.00078904,120]
[326801965,1715381519666,-1154.88,0.00078904,120]
[326801966,1715381519676,-8703.16,0.00078904,120]
[326801967,1715381519686,-751.25,0.00078904,120]
[326801968,1715381519695,-536.24,0.00078904,120]
[326801969,1715381519705,-745.85,0.00078904,120]
[326801970,1715381519715,-1112.7,0.00078904,120]
[326801971,1715381519724,-3156.04,0.00078904,120]
[326801972,1715381519734,-1283.02,0.00078904,120]
[326801973,1715381519743,-1747.91,0.00078904,120]
[326801974,1715381519753,-924.27,0.00078904,120]
[326801975,1715381519763,-585.25,0.00078904,120]
[326801976,1715381519772,-790.87,0.00078904,120]
[326801977,1715381519782,-1269.11,0.00078904,120]
[326801978,1715381519791,-5883.06,0.00078904,120]
[326801979,1715381519801,-1859.96,0.00078904,120]
[326801980,1715381519811,-1701.09,0.00078904,120]
[326801981,1715381519820,-632.32,0.00078904,60]
[326801982,1715381519830,-1691.53,0.00078904,120]
[326801983,1715381519840,-592.96,0.00078904,120]
[326801984,1715381519849,-3991.97,0.00078904,120]
[326801985,1715381519859,-783.68,0.00078904,120]
[326801986,1715381519868,-4891.99,0.00078904,21]
[326801987,1715381519877,-2531.38,0.00078904,120]
[326801988,1715381519887,-310.5522741,0.00078904,120]
[326801989,1715381519896,-2025.54,0.00078904,120]
[326801990,1715381519906,-2056.13,0.00078904,120]
[326801991,1715381519915,-47405.75,0.00078904,120]
[326801992,1715381519925,-643.51,0.00078904,120]
[326801993,1715381519935,-906.96,0.00078904,120]
[326801994,1715381519946,-852.8,0.00078904,120]
[326801995,1715381519956,-8527.55,0.00078904,120]
[326801996,1715381519966,-972.54,0.00078904,120]
[326801997,1715381519975,-546.11,0.00078904,120]
[326801998,1715381519985,-3524.89,0.00078904,2]
[326801999,1715381519994,-1320.33,0.00078904,2]
[326802000,1715381520004,-560.85,0.00078904,120]
[326802001,1715381520014,-715.77,0.00078904,120]
[326802002,1715381520025,-728.84,0.00078904,120]
[326802003,1715381520035,-1524.6,0.00078904,120]
[326802004,1715381520044,-2617.66,0.00078904,120]
[326802005,1715381520054,-1552.09,0.00078904,120]
[326802006,1715381520064,-1408.03,0.00078904,120]
[326802007,1715381520074,-709.54,0.00078904,120]
[326802008,1715381520084,-2955.83,0.00078904,120]
[326802009,1715381520093,-679.75,0.00078904,120]
[326802010,1715381520103,-525.15,0.00078904,120]
[326802011,1715381520113,-671.41,0.00078904,120]
[326802012,1715381520123,-17679.9,0.00078904,120]
[326802013,1715381520133,-4314.35,0.00078904,120]
[326802014,1715381520143,-680.13,0.00078904,120]
[326802015,1715381520153,-9229.8,0.00078904,120]
[326802016,1715381520162,-990.56,0.00078904,120]
[326802017,1715381520172,-1953.0,0.00078904,120]
[326802018,1715381520190,-1273.71,0.00078904,120]
[326802019,1715381520202,-1389.39,0.00078904,120]